[Event "Estonian Chess Championship 2021"]
[Site "Tallinn, Paul Keres Chess House, Estonia"]
[Date "2021.12.15"]
[Round "5.3"]
[White "Volodin, Aleksandr"]
[Black "Rychagov, Nikita"]
[Result "1/2-1/2"]
[TimeControl "90 minutes for first 40 moves and 15 min. for the rest of the game with 30 sec."]
[WhiteTitle "GM"]
[WhiteFideId "4501950"]
[BlackFideId "4508394"]
[WhiteElo "2461"]
[BlackElo "1985"]

1. d4 {[%clk 01:26:37]} d5 {[%clk 01:30:55]} 2. c4 {[%clk 01:27:02]} e6 {[%clk
01:31:22]} 3. Nc3 {[%clk 01:27:27]} Nf6 {[%clk 01:31:49]} 4. cxd5 exd5 {[%clk
01:32:16]} 5. Bg5 {[%clk 01:28:17]} c6 {[%clk 01:32:42]} 6. Qc2 {[%clk
01:28:34]} h6 {[%clk 01:33:08]} 7. Bh4 {[%clk 01:28:52]} Be7 {[%clk 01:33:34]}
8. e3 {[%clk 01:29:15]} O-O {[%clk 01:33:58]} 9. Bd3 {[%clk 01:29:39]} Re8
{[%clk 01:34:24]} 10. Nge2 {[%clk 01:30:00]} Nbd7 {[%clk 01:34:49]} 11. O-O
{[%clk 01:30:21]} Ne4 {[%clk 01:34:48]} 12. Bxe7 Qxe7 {[%clk 01:35:15]} 13.
Rae1 {[%clk 01:30:24]} Ndf6 {[%clk 01:35:39]} 14. f3 {[%clk 01:30:47]} Nxc3 15.
Nxc3 {[%clk 01:31:09]} Be6 {[%clk 01:22:23]} 16. a3 {[%clk 01:31:01]} c5 {[%clk
01:22:21]} 17. dxc5 Qxc5 {[%clk 01:22:47]} 18. Nb5 {[%clk 01:30:46]} Qxc2 19.
Bxc2 {[%clk 01:31:15]} Rec8 {[%clk 01:18:34]} 20. Nd4 {[%clk 01:24:32]} {[%emt
00:00:06]} Rc5 {[%clk 01:17:57]} 21. Bd3 {[%clk 01:21:37]} Rac8 {[%clk
01:17:35]} 22. Kf2 {[%clk 01:21:10]} Nd7 {[%clk 01:16:27]} 23. f4 {[%clk
01:13:47]} {[%emt 00:03:33]} Nb6 {[%clk 01:14:44]} {[%emt 00:02:14]} 24. h3
{[%clk 01:06:51]} {[%emt 00:07:25]} a6 {[%clk 01:11:46]} {[%emt 00:03:28]} 25.
Kf3 {[%clk 01:00:24]} {[%emt 00:06:56]} Na4 {[%clk 01:11:34]} {[%emt 00:00:42]}
26. Rf2 {[%clk 00:56:23]} {[%emt 00:04:30]} b5 {[%clk 01:10:38]} {[%emt
00:01:27]} 27. Rd1 {[%clk 00:55:01]} {[%emt 00:01:51]} Nb6 {[%clk 01:09:23]}
{[%emt 00:01:46]} 28. g4 {[%clk 00:51:10]} {[%emt 00:04:21]} Kf8 {[%clk
01:07:50]} {[%emt 00:02:03]} 29. Bc2 {[%clk 00:41:38]} {[%emt 00:10:02]} a5
{[%clk 01:04:28]} {[%emt 00:03:52]} 30. Bd3 {[%clk 00:41:51]} {[%emt 00:00:17]}
Bd7 {[%clk 01:04:51]} {[%emt 00:00:07]} 31. Nb3 {[%clk 00:41:45]} {[%emt
00:00:36]} R5c7 {[%clk 01:04:42]} {[%emt 00:00:39]} 32. Nxa5 {[%clk 00:40:34]}
{[%emt 00:01:41]} Nc4 {[%clk 01:03:00]} {[%emt 00:02:12]} 33. Nb3 {[%clk
00:38:43]} {[%emt 00:02:20]} Re8 {[%clk 01:02:26]} {[%emt 00:01:04]} 34. Re1
{[%clk 00:38:14]} {[%emt 00:00:59]} g5 {[%clk 01:02:24]} {[%emt 00:00:32]} 35.
Nd4 {[%clk 00:28:09]} {[%emt 00:10:35]} Kg7 {[%clk 00:54:47]} {[%emt 00:08:07]}
36. Ree2 {[%clk 00:25:36]} {[%emt 00:03:03]} b4 {[%clk 00:50:31]} {[%emt
00:04:46]} 37. axb4 {[%clk 00:25:15]} {[%emt 00:00:51]} Rb8 {[%clk 00:46:34]}
{[%emt 00:04:27]} 38. Rc2 {[%clk 00:20:58]} {[%emt 00:04:47]} gxf4 {[%clk
00:46:46]} {[%emt 00:00:19]} 39. Kxf4 {[%clk 00:20:46]} {[%emt 00:00:42]} Rcc8
{[%clk 00:42:09]} {[%emt 00:05:07]} 40. b5 {[%clk 00:34:16]} {[%emt 00:02:00]}
Rb6 {[%clk 00:56:26]} {[%emt 00:01:13]} 41. b3 {[%clk 00:33:29]} {[%emt
00:01:17]} Rf6+ {[%clk 00:55:46]} {[%emt 00:01:10]} 42. Nf5+ {[%clk 00:32:33]}
{[%emt 00:01:26]} Bxf5 {[%clk 00:56:11]} {[%emt 00:00:05]} 43. gxf5 {[%clk
00:32:19]} {[%emt 00:00:44]} Nd6 {[%clk 00:56:14]} {[%emt 00:00:26]} 44. Rxc8
{[%clk 00:32:44]} {[%emt 00:00:06]} Nxc8 {[%clk 00:56:41]} {[%emt 00:00:03]} 45.
Rc2 {[%clk 00:29:57]} {[%emt 00:03:17]} Ne7 {[%clk 00:57:04]} {[%emt 00:00:06]}
46. Ke5 {[%clk 00:30:20]} {[%emt 00:00:07]} Rb6 {[%clk 00:57:23]} {[%emt
00:00:11]} 47. f6+ {[%clk 00:30:34]} {[%emt 00:00:17]} Rxf6 {[%clk 00:57:46]}
{[%emt 00:00:06]} 48. Rg2+ {[%clk 00:31:01]} {[%emt 00:00:02]} Ng6+ {[%clk
00:58:10]} {[%emt 00:00:07]} 49. Bxg6 {[%emt 00:00:10]} fxg6 {[%clk 00:58:31]}
{[%emt 00:00:06]} 50. Kxd5 {[%clk 00:31:42]} {[%emt 00:00:12]} Rf3 {[%clk
00:58:57]} {[%emt 00:00:04]} 51. Re2 {[%clk 00:31:21]} {[%emt 00:00:51]} Rxh3
{[%clk 00:59:23]} {[%emt 00:00:03]} 52. b6 {[%clk 00:31:47]} {[%emt 00:00:05]}
Rf3 {[%clk 00:59:49]} {[%emt 00:00:04]} 53. b7 {[%clk 00:31:48]} {[%emt
00:00:28]} Rf8 {[%clk 01:00:16]} {[%emt 00:00:03]} 54. Kc6 {[%clk 00:31:59]}
{[%emt 00:00:19]} g5 {[%clk 01:00:19]} {[%emt 00:00:27]} 55. Kc7 {[%clk
00:30:03]} {[%emt 00:02:26]} g4 {[%clk 01:00:40]} {[%emt 00:00:09]} 56. Rd2
{[%clk 00:29:42]} {[%emt 00:00:51]} Kg6 {[%clk 01:00:44]} {[%emt 00:00:26]} 57.
e4 {[%clk 00:23:12]} {[%emt 00:06:59]} h5 {[%clk 01:01:08]} {[%emt 00:00:06]}
58. e5 {[%clk 00:23:34]} {[%emt 00:00:09]} g3 {[%clk 01:00:55]} {[%emt
00:00:43]} 59. e6 {[%clk 00:23:17]} {[%emt 00:00:46]} Kf6 {[%clk 01:01:18]}
{[%emt 00:00:07]} 60. Rd8 {[%clk 00:12:11]} {[%emt 00:11:36]} Rxd8 {[%clk
01:01:28]} {[%emt 00:00:21]} 61. Kxd8 {[%clk 00:12:34]} {[%emt 00:00:06]} g2
{[%clk 01:01:03]} {[%emt 00:00:55]} 62. b8=Q {[%clk 00:12:58]} {[%emt
00:00:05]} g1=Q {[%clk 01:01:05]} {[%emt 00:00:28]} 63. Qd6 {[%clk 00:13:20]}
{[%emt 00:00:08]} Qg8+ {[%clk 01:00:58]} {[%emt 00:00:37]} 64. Kd7 {[%clk
00:13:27]} {[%emt 00:00:23]} Qg4 {[%clk 01:00:51]} {[%emt 00:00:37]} 65. Qf8+
{[%clk 00:10:35]} {[%emt 00:03:22]} Ke5 {[%clk 01:01:01]} {[%emt 00:00:21]} 66.
Qc5+ {[%clk 00:10:28]} {[%emt 00:00:36]} Kf6 {[%clk 01:01:25]} {[%emt
00:00:06]} 67. Qf2+ {[%clk 00:10:46]} {[%emt 00:00:12]} Kg5 {[%clk 01:01:40]}
{[%emt 00:00:16]} 68. Qe3+ {[%clk 00:10:10]} {[%emt 00:01:06]} Kg6 {[%clk
00:59:05]} {[%emt 00:03:05]} 69. Kc7 {[%clk 00:08:46]} {[%emt 00:01:54]} Qb4
{[%clk 00:57:31]} {[%emt 00:02:04]} 70. e7 {[%clk 00:08:20]} {[%emt 00:00:55]}
Qa5+ {[%clk 00:57:59]} {[%emt 00:00:02]} 71. Kc6 {[%clk 00:05:53]} {[%emt
00:02:55]} Qa8+ {[%clk 00:57:45]} {[%emt 00:00:46]} 72. Kb5 {[%clk 00:05:25]}
{[%emt 00:00:58]} Kf7 {[%clk 00:56:42]} {[%emt 00:01:33]} 73. Qe5 {[%clk
00:03:16]} {[%emt 00:02:39]} Qb7+ {[%clk 00:57:02]} {[%emt 00:00:10]} 74. Kc4
{[%clk 00:03:35]} {[%emt 00:00:10]} Qa6+ {[%clk 00:56:58]} {[%emt 00:00:35]} 75.
Kb4 {[%clk 00:03:09]} {[%emt 00:00:56]} Qb7+ {[%clk 00:55:25]} {[%emt
00:02:03]} 76. Kc3 {[%clk 00:03:35]} {[%emt 00:00:03]} Qf3+ {[%clk 00:54:00]}
{[%emt 00:01:55]} 77. Kd4 {[%clk 00:02:39]} {[%emt 00:01:25]} Ke8 {[%clk
00:52:48]} {[%emt 00:01:43]} 78. b4 {[%clk 00:02:23]} {[%emt 00:00:46]} h4
{[%clk 00:52:42]} {[%emt 00:00:37]} 79. Qh8+ {[%clk 00:02:48]} {[%emt
00:00:05]} Kxe7 {[%clk 00:53:05]} {[%emt 00:00:07]} 80. Qxh4+ {[%clk 00:03:17]}
{[%emt 00:00:01]} Kd7 {[%clk 00:53:08]} {[%emt 00:00:27]} 81. Qh7+ {[%clk
00:03:01]} {[%emt 00:00:46]} Kc6 {[%clk 00:52:49]} {[%emt 00:00:49]} 82. Qc2+
{[%clk 00:03:09]} {[%emt 00:00:22]} Kb7 {[%clk 00:53:05]} {[%emt 00:00:14]} 83.
Qd2 {[%clk 00:01:33]} {[%emt 00:02:05]} Kb6 {[%clk 00:52:45]} {[%emt 00:00:52]}
84. Kc4 {[%clk 00:01:20]} {[%emt 00:00:43]} Qe4+ {[%clk 00:53:00]} {[%emt
00:00:15]} 85. Kb3 {[%clk 00:01:46]} {[%emt 00:00:04]} Qe6+ {[%clk 00:53:12]}
{[%emt 00:00:18]} 86. Ka3 {[%clk 00:02:10]} {[%emt 00:00:05]} Qf6 {[%clk
00:53:20]} {[%emt 00:00:23]} 87. Qe3+ {[%clk 00:02:32]} {[%emt 00:00:08]} Ka6
{[%clk 00:53:36]} {[%emt 00:00:14]} 88. Qc5 {[%clk 00:01:19]} {[%emt 00:01:43]}
Qa1+ {[%clk 00:54:02]} {[%emt 00:00:04]} 89. Kb3 {[%clk 00:01:44]} {[%emt
00:00:05]} Qb1+ {[%clk 00:54:26]} {[%emt 00:00:06]} 90. Kc4 {[%clk 00:02:08]}
{[%emt 00:00:05]} Qc2+ {[%clk 00:54:49]} {[%emt 00:00:07]} 91. Kd5 {[%clk
00:02:34]} {[%emt 00:00:05]} Qf5+ {[%clk 00:54:58]} {[%emt 00:00:21]} 92. Kc6
{[%clk 00:02:56]} {[%emt 00:00:08]} Qe6 {[%clk 00:55:16]} {[%emt 00:00:13]} 93.
Kc7 {[%clk 00:03:08]} {[%emt 00:00:17]} Qf7+ {[%clk 00:55:42]} {[%emt
00:00:04]} 94. Kd6 {[%clk 00:03:02]} {[%emt 00:00:36]} Qf6 {[%clk 00:56:04]}
{[%emt 00:00:08]} 95. Kd5 {[%clk 00:03:20]} {[%emt 00:00:11]} Qf5+ {[%clk
00:56:30]} {[%emt 00:00:04]} 96. Kd4 {[%clk 00:03:45]} {[%emt 00:00:05]} Qf4+
{[%clk 00:56:38]} {[%emt 00:00:22]} 97. Kd3 {[%clk 00:04:04]} {[%emt 00:00:11]}
Qf3+ {[%clk 00:57:04]} {[%emt 00:00:05]} 98. Kd2 {[%clk 00:04:24]} {[%emt
00:00:10]} Qf4+ {[%clk 00:57:01]} {[%emt 00:00:33]} 99. Kc2 {[%clk 00:04:49]}
{[%emt 00:00:05]} Qe4+ {[%clk 00:57:27]} {[%emt 00:00:04]} 100. Kb2 {[%clk
00:05:01]} {[%emt 00:00:18]} Qe2+ {[%clk 00:57:43]} {[%emt 00:00:14]} 101. Ka3
{[%clk 00:05:22]} {[%emt 00:00:09]} Qd3+ {[%clk 00:58:04]} {[%emt 00:00:08]}
1/2-1/2

[Event "Estonian Chess Championship 2021"]
[Site "Tallinn, Paul Keres Chess House, Estonia"]
[Date "2021.12.15"]
[Round "5.4"]
[White "Shishkov, Andrei"]
[Black "Andrijashkin, Deniss"]
[Result "0-1"]
[TimeControl "90 minutes for first 40 moves and 15 min. for the rest of the game with 30 sec."]
[WhiteTitle "IM"]
[WhiteFideId "4500563"]
[BlackFideId "4504631"]
[WhiteElo "2405"]
[BlackElo "2036"]

1. d4 {[%clk 01:30:57]} Nf6 {[%clk 01:26:44]} 2. c4 {[%clk 01:31:23]} g6 {[%clk
01:27:10]} 3. Nc3 {[%clk 01:31:50]} Bg7 {[%clk 01:27:35]} 4. e4 {[%clk
01:32:17]} d6 {[%clk 01:28:00]} 5. f3 {[%clk 01:32:43]} O-O {[%clk 01:28:24]} 6.
Be3 {[%clk 01:33:11]} a6 {[%clk 01:28:26]} 7. Qd2 {[%clk 01:33:31]} Nc6 {[%clk
01:28:52]} 8. O-O-O {[%clk 01:33:53]} b5 {[%clk 01:29:16]} 9. h4 {[%clk
01:34:02]} Nh5 {[%clk 01:19:51]} 10. cxb5 {[%clk 01:19:22]} axb5 {[%clk
01:11:21]} {[%emt 00:00:05]} 11. Bxb5 {[%clk 01:19:25]} Na5 {[%clk 01:06:11]}
12. g4 {[%clk 01:12:34]} {[%emt 00:04:00]} c6 {[%clk 01:05:47]} {[%emt
00:00:54]} 13. Bd3 {[%clk 01:12:15]} {[%emt 00:00:48]} Nf6 {[%clk 01:04:15]}
{[%emt 00:02:03]} 14. b4 {[%clk 00:58:02]} {[%emt 00:14:43]} Nb7 {[%clk
01:03:19]} {[%emt 00:01:25]} 15. h5 {[%clk 00:56:49]} {[%emt 00:01:44]} Qb6
{[%clk 01:00:44]} {[%emt 00:03:04]} 16. e5 {[%clk 00:53:33]} {[%emt 00:03:47]}
Nd5 {[%clk 00:44:36]} {[%emt 00:16:37]} 17. Nxd5 {[%clk 00:53:16]} {[%emt
00:00:47]} cxd5 {[%clk 00:44:08]} {[%emt 00:00:58]} 18. hxg6 {[%clk 00:53:00]}
{[%emt 00:00:46]} fxg6 {[%clk 00:32:16]} {[%emt 00:12:23]} 19. Qh2 {[%clk
00:34:43]} {[%emt 00:18:46]} h5 {[%clk 00:27:53]} {[%emt 00:04:54]} 20. gxh5
{[%clk 00:26:13]} {[%emt 00:09:01]} Bd7 {[%clk 00:18:42]} {[%emt 00:09:40]} 21.
Qb2 {[%clk 00:24:12]} {[%emt 00:02:31]} Rfc8+ {[%clk 00:17:14]} {[%emt
00:01:58]} 22. Kb1 {[%clk 00:24:29]} {[%emt 00:00:12]} dxe5 {[%clk 00:17:03]}
{[%emt 00:00:42]} 23. h6 {[%clk 00:23:18]} {[%emt 00:01:41]} Bh8 {[%clk
00:16:46]} {[%emt 00:00:46]} 24. h7+ {[%clk 00:23:26]} {[%emt 00:00:23]} Kf7
{[%clk 00:16:50]} {[%emt 00:00:25]} 25. Rh6 {[%clk 00:10:20]} {[%emt 00:13:35]}
exd4 {[%clk 00:14:26]} {[%emt 00:02:55]} 26. Bxg6+ {[%clk 00:09:03]} {[%emt
00:01:46]} Qxg6+ {[%clk 00:14:35]} {[%emt 00:00:21]} 27. Rxg6 {[%clk 00:08:41]}
{[%emt 00:00:52]} Bf5+ {[%clk 00:13:20]} {[%emt 00:01:45]} 28. Ka1 {[%clk
00:08:58]} {[%emt 00:00:14]} dxe3 {[%clk 00:13:30]} {[%emt 00:00:20]} 29. Qxh8
{[%clk 00:07:35]} {[%emt 00:01:53]} Rxh8 {[%clk 00:13:16]} {[%emt 00:00:44]} 30.
Rb6 {[%clk 00:07:57]} {[%emt 00:00:08]} Rxh7 {[%clk 00:12:04]} {[%emt
00:01:43]} 31. Rxd5 {[%clk 00:07:38]} {[%emt 00:00:49]} Be6 {[%clk 00:12:11]}
{[%emt 00:00:22]} 32. Re5 {[%clk 00:07:33]} {[%emt 00:00:36]} Nd6 {[%clk
00:12:03]} {[%emt 00:00:37]} 33. Rxe3 {[%clk 00:06:54]} {[%emt 00:01:10]} Bxa2
{[%clk 00:10:19]} {[%emt 00:02:14]} 34. Re1 {[%clk 00:05:42]} {[%emt 00:01:42]}
Rh2 {[%clk 00:09:53]} {[%emt 00:00:55]} 35. f4 {[%clk 00:02:43]} {[%emt
00:03:30]} Bc4+ {[%clk 00:10:05]} {[%emt 00:00:16]} 36. Kb1 {[%clk 00:03:10]}
{[%emt 00:00:05]} Bd3+ {[%emt 00:00:14]} 0-1

[Event "Estonian Chess Championship 2021"]
[Site "Tallinn, Paul Keres Chess House, Estonia"]
[Date "2021.12.15"]
[Round "5.5"]
[White "Soot, Margus"]
[Black "Kull, Tormi"]
[Result "1-0"]
[TimeControl "90 minutes for first 40 moves and 15 min. for the rest of the game with 30 sec."]
[WhiteFideId "4501160"]
[BlackFideId "4510151"]
[WhiteElo "2117"]
[BlackElo "1753"]

1. Nf3 {[%clk 01:30:56]} d5 {[%clk 01:30:50]} 2. g3 {[%clk 01:31:17]} Nf6
{[%clk 01:30:26]} 3. Bg2 {[%clk 01:31:41]} c6 {[%clk 01:28:36]} 4. O-O {[%clk
01:31:36]} Bf5 {[%clk 01:28:59]} 5. d3 {[%clk 01:31:08]} h6 {[%clk 01:28:42]} 6.
Nbd2 {[%clk 01:31:32]} e6 {[%clk 01:28:53]} 7. c4 {[%clk 01:31:08]} Nbd7 {[%clk
01:27:55]} 8. a3 {[%clk 01:28:06]} a5 {[%clk 01:26:41]} 9. b3 {[%clk 01:27:57]}
Be7 {[%clk 01:25:39]} 10. Bb2 {[%clk 01:28:20]} O-O {[%clk 01:24:45]} 11. Qc2
{[%clk 01:27:56]} Bh7 {[%clk 01:21:30]} 12. Bc3 {[%clk 01:24:37]} Qc7 {[%clk
01:16:41]} 13. Qb2 {[%clk 01:24:40]} c5 {[%clk 01:16:43]} 14. cxd5 exd5 {[%clk
01:16:42]} 15. d4 {[%clk 01:24:26]} c4 {[%clk 01:14:55]} 16. bxc4 dxc4 {[%clk
01:14:32]} 17. Ne5 {[%clk 01:23:19]} Nb6 {[%clk 01:10:23]} 18. Qb5 {[%clk
01:22:58]} Rfd8 {[%clk 01:00:52]} {[%emt 00:05:29]} 19. Bxa5 {[%clk 01:16:18]}
{[%emt 00:07:10]} Rxa5 {[%clk 00:47:45]} {[%emt 00:13:37]} 20. Qxa5 {[%clk
01:16:34]} {[%emt 00:00:13]} Ra8 {[%clk 00:47:54]} {[%emt 00:00:21]} 21. Qc3
{[%clk 01:15:00]} {[%emt 00:02:04]} Rc8 {[%clk 00:47:35]} {[%emt 00:00:49]} 22.
Rfc1 {[%clk 01:15:02]} {[%emt 00:00:27]} Qb8 {[%clk 00:46:43]} {[%emt
00:01:23]} 23. Qa5 {[%clk 01:15:03]} {[%emt 00:00:29]} Bd8 {[%clk 00:46:27]}
{[%emt 00:00:46]} 24. Qb4 {[%clk 01:10:22]} {[%emt 00:05:12]} Nfd5 {[%clk
00:45:53]} {[%emt 00:01:03]} 25. Bxd5 {[%clk 01:10:43]} {[%emt 00:00:09]} Nxd5
{[%clk 00:46:20]} {[%emt 00:00:04]} 26. Qb5 {[%clk 01:11:06]} {[%emt 00:00:07]}
c3 {[%clk 00:46:26]} {[%emt 00:00:23]} 27. Qe8# {[%clk 01:11:30]} {[%emt
00:00:06]} 1-0

[Event "Estonian Chess Championship 2021"]
[Site "Tallinn, Paul Keres Chess House, Estonia"]
[Date "2021.12.16"]
[Round "6.2"]
[White "Andrijashkin, Deniss"]
[Black "Soot, Margus"]
[Result "1-0"]
[TimeControl "90 minutes for first 40 moves and 15 min. for the rest of the game with 30 sec."]
[WhiteFideId "4504631"]
[BlackFideId "4501160"]
[WhiteElo "2036"]
[BlackElo "2117"]

1. e4 {[%clk 01:24:21]} {[%emt 00:06:39]} c5 {[%clk 01:30:49]} {[%emt
00:00:11]} 2. Nf3 {[%clk 01:24:25]} {[%emt 00:00:27]} d6 {[%clk 01:31:02]}
{[%emt 00:00:16]} 3. Bb5+ {[%clk 01:20:27]} {[%emt 00:04:27]} Bd7 {[%clk
01:29:32]} {[%emt 00:02:00]} 4. Bxd7+ {[%clk 01:20:53]} {[%emt 00:00:04]} Nxd7
{[%clk 01:29:37]} {[%emt 00:00:25]} 5. O-O {[%clk 01:20:13]} {[%emt 00:01:10]}
g6 {[%clk 01:28:12]} {[%emt 00:01:55]} 6. c3 {[%clk 01:14:49]} {[%emt
00:05:55]} Bg7 {[%clk 01:25:55]} {[%emt 00:02:47]} 7. d4 {[%clk 01:14:19]}
{[%emt 00:00:59]} cxd4 {[%clk 01:26:20]} {[%emt 00:00:06]} 8. cxd4 {[%clk
01:14:32]} {[%emt 00:00:17]} e6 {[%clk 01:26:40]} {[%emt 00:00:10]} 9. Nc3
{[%clk 01:07:12]} {[%emt 00:07:50]} Ne7 {[%clk 01:25:18]} {[%emt 00:01:51]} 10.
Bf4 {[%clk 01:06:43]} {[%emt 00:00:59]} Nb6 {[%clk 01:24:00]} {[%emt 00:01:48]}
11. Nb5 {[%clk 00:46:26]} {[%emt 00:20:48]} Nec8 {[%clk 01:22:55]} {[%emt
00:01:34]} 12. Qb3 {[%clk 00:40:02]} {[%emt 00:06:54]} O-O {[%clk 01:21:13]}
{[%emt 00:02:12]} 13. Rac1 {[%clk 00:38:21]} {[%emt 00:02:10]} a6 {[%clk
01:19:56]} {[%emt 00:01:48]} 14. Nc7 {[%clk 00:27:19]} {[%emt 00:11:33]} Ra7
{[%clk 01:14:02]} {[%emt 00:06:24]} 15. d5 {[%clk 00:27:17]} {[%emt 00:00:31]}
exd5 {[%clk 01:11:25]} {[%emt 00:03:07]} 16. Nxd5 {[%clk 00:23:17]} {[%emt
00:04:30]} Nxd5 {[%clk 01:07:42]} {[%emt 00:04:13]} 17. Qxd5 {[%clk 00:21:50]}
{[%emt 00:01:56]} b5 {[%clk 01:01:36]} {[%emt 00:06:37]} 18. b3 {[%clk
00:21:31]} {[%emt 00:00:49]} Qa5 {[%clk 00:55:07]} {[%emt 00:06:59]} 19. Rc2
{[%clk 00:20:02]} {[%emt 00:01:58]} Rd7 {[%clk 00:49:39]} {[%emt 00:05:58]} 20.
Qc6 {[%clk 00:12:49]} {[%emt 00:07:38]} Rfd8 {[%clk 00:49:23]} {[%emt
00:00:51]} 21. Bd2 {[%clk 00:11:54]} {[%emt 00:01:25]} Qa3 {[%clk 00:49:42]}
{[%emt 00:00:11]} 22. Qxc8 {[%clk 00:11:46]} {[%emt 00:00:38]} 1-0

[Event "Estonian Chess Championship 2021"]
[Site "Tallinn, Paul Keres Chess House, Estonia"]
[Date "2021.12.16"]
[Round "6.3"]
[White "Rychagov, Nikita"]
[Black "Shishkov, Andrei"]
[Result "1-0"]
[TimeControl "90 minutes for first 40 moves and 15 min. for the rest of the game with 30 sec."]
[BlackTitle "IM"]
[WhiteFideId "4508394"]
[BlackFideId "4500563"]
[WhiteElo "1985"]
[BlackElo "2405"]

1. e4 {[%clk 01:30:56]} {[%emt 00:00:03]} c6 {[%clk 01:30:55]} {[%emt
00:00:05]} 2. d4 {[%clk 01:31:23]} {[%emt 00:00:03]} d5 {[%clk 01:31:22]}
{[%emt 00:00:03]} 3. e5 {[%clk 01:31:50]} {[%emt 00:00:04]} c5 {[%clk
01:31:50]} {[%emt 00:00:02]} 4. dxc5 {[%clk 01:32:16]} {[%emt 00:00:04]} e6
{[%clk 01:32:15]} {[%emt 00:00:05]} 5. Qg4 {[%clk 01:32:43]} {[%emt 00:00:03]}
h5 {[%clk 01:30:35]} {[%emt 00:02:09]} 6. Qf4 {[%clk 01:33:07]} {[%emt
00:00:07]} Nc6 {[%clk 01:27:29]} {[%emt 00:03:35]} 7. Nf3 {[%clk 01:25:29]}
{[%emt 00:08:08]} Bxc5 {[%clk 01:27:30]} {[%emt 00:00:30]} 8. Nc3 {[%clk
01:25:54]} {[%emt 00:00:04]} Nh6 {[%clk 01:24:05]} {[%emt 00:03:54]} 9. h3
{[%clk 01:17:49]} {[%emt 00:08:35]} Qb6 {[%clk 01:04:26]} {[%emt 00:20:09]} 10.
Bd3 {[%clk 01:18:14]} {[%emt 00:00:05]} Nb4 {[%clk 00:55:21]} {[%emt 00:09:35]}
11. O-O {[%clk 01:18:31]} {[%emt 00:00:13]} Nxd3 {[%clk 00:55:26]} {[%emt
00:00:25]} 12. cxd3 {[%clk 01:18:56]} {[%emt 00:00:05]} Bd7 {[%clk 00:53:40]}
{[%emt 00:02:16]} 13. Na4 {[%clk 01:17:14]} {[%emt 00:02:12]} Bxa4 {[%clk
00:49:25]} {[%emt 00:04:45]} 14. Qxa4+ {[%clk 01:17:39]} {[%emt 00:00:05]} Kf8
{[%clk 00:45:54]} {[%emt 00:04:01]} 15. Bd2 {[%clk 01:13:55]} {[%emt 00:04:15]}
Nf5 {[%clk 00:38:34]} {[%emt 00:07:49]} 16. Rac1 {[%clk 00:59:00]} {[%emt
00:15:25]} a5 {[%clk 00:33:29]} {[%emt 00:05:35]} 17. b4 {[%clk 00:57:48]}
{[%emt 00:01:42]} Bxb4 {[%clk 00:33:35]} {[%emt 00:00:24]} 18. Bxb4+ {[%clk
00:58:02]} {[%emt 00:00:16]} Qxb4 {[%clk 00:33:55]} {[%emt 00:00:10]} 19. Qxb4+
{[%clk 00:58:26]} {[%emt 00:00:07]} axb4 {[%clk 00:34:21]} {[%emt 00:00:04]} 20.
Rc7 {[%clk 00:58:51]} {[%emt 00:00:05]} h4 {[%clk 00:22:29]} {[%emt 00:12:22]}
21. Rxb7 {[%clk 00:51:06]} {[%emt 00:08:15]} Rh5 {[%clk 00:22:15]} {[%emt
00:00:43]} 22. Ra1 {[%clk 00:51:28]} {[%emt 00:00:09]} Ra4 {[%clk 00:19:54]}
{[%emt 00:02:51]} 23. Rb8+ {[%clk 00:51:55]} {[%emt 00:00:03]} Ke7 {[%clk
00:20:22]} {[%emt 00:00:03]} 24. Rc1 {[%clk 00:51:52]} {[%emt 00:00:33]} Kd7
{[%clk 00:17:27]} {[%emt 00:03:25]} 25. Rc2 {[%clk 00:51:53]} {[%emt 00:00:29]}
f6 {[%clk 00:16:03]} {[%emt 00:01:53]} 26. Rb7+ {[%clk 00:48:41]} {[%emt
00:03:42]} Kd8 {[%clk 00:16:27]} {[%emt 00:00:06]} 27. Rc6 {[%clk 00:48:44]}
{[%emt 00:00:27]} Rxa2 {[%clk 00:12:05]} {[%emt 00:04:53]} 28. exf6 {[%clk
00:48:48]} {[%emt 00:00:26]} gxf6 {[%clk 00:12:19]} {[%emt 00:00:16]} 29. Rxe6
{[%clk 00:48:51]} {[%emt 00:00:27]} Rh6 {[%clk 00:09:31]} {[%emt 00:03:18]} 30.
Rxb4 {[%clk 00:48:05]} {[%emt 00:01:16]} Ra1+ {[%clk 00:05:23]} {[%emt
00:04:39]} 31. Kh2 {[%clk 00:48:25]} {[%emt 00:00:10]} Rg6 {[%clk 00:04:56]}
{[%emt 00:00:56]} 32. Rf4 {[%clk 00:48:41]} {[%emt 00:00:15]} Kd7 {[%clk
00:03:03]} {[%emt 00:02:23]} 33. Re2 {[%clk 00:42:47]} {[%emt 00:06:24]} Ng3
{[%clk 00:01:55]} {[%emt 00:01:39]} 34. Re1 {[%clk 00:43:05]} {[%emt 00:00:12]}
Rxe1 {[%clk 00:01:48]} {[%emt 00:00:37]} 35. Nxe1 {[%clk 00:43:31]} {[%emt
00:00:03]} Ne2 {[%clk 00:02:06]} {[%emt 00:00:12]} 36. Rxh4 {[%clk 00:43:52]}
{[%emt 00:00:09]} Ke6 {[%clk 00:01:46]} {[%emt 00:00:49]} 37. Nf3 {[%clk
00:43:25]} {[%emt 00:00:58]} Nc1 {[%clk 00:01:39]} {[%emt 00:00:37]} 38. d4
{[%clk 00:40:55]} {[%emt 00:03:00]} Rg8 {[%clk 00:01:45]} {[%emt 00:00:24]} 39.
Rh7 {[%clk 00:39:05]} {[%emt 00:02:20]} Rc8 {[%clk 00:01:46]} {[%emt 00:00:29]}
40. h4 {[%clk 00:52:33]} {[%emt 00:02:02]} Rc2 {[%clk 00:16:35]} {[%emt
00:00:41]} 41. h5 {[%clk 00:52:25]} {[%emt 00:00:39]} Nd3 {[%clk 00:14:52]}
{[%emt 00:02:13]} 42. h6 {[%clk 00:48:58]} {[%emt 00:03:57]} Nxf2 {[%clk
00:15:15]} {[%emt 00:00:06]} 43. Rg7 {[%clk 00:49:12]} {[%emt 00:00:16]} Rc1
{[%clk 00:13:49]} {[%emt 00:01:56]} 44. h7 {[%clk 00:47:48]} {[%emt 00:01:53]}
Rh1+ {[%clk 00:14:01]} {[%emt 00:00:18]} 45. Kg3 {[%clk 00:48:14]} {[%emt
00:00:04]} Ne4+ {[%clk 00:14:09]} {[%emt 00:00:22]} 46. Kf4 {[%clk 00:48:14]}
{[%emt 00:00:30]} Rh6 {[%clk 00:03:06]} {[%emt 00:11:33]} 47. g3 {[%clk
00:45:49]} {[%emt 00:02:55]} Nf2 {[%clk 00:02:04]} {[%emt 00:01:31]} 48. Nh4
{[%clk 00:45:09]} {[%emt 00:01:10]} Nh3+ {[%clk 00:02:24]} {[%emt 00:00:10]} 49.
Kg4 {[%clk 00:45:31]} {[%emt 00:00:08]} Ng5 {[%clk 00:01:21]} {[%emt 00:01:33]}
50. Rxg5 {[%clk 00:45:50]} {[%emt 00:00:11]} 1-0